[Event "9th Bangabandhu Rapid Women 2021"]
[Site "Dhaka"]
[Date "2021.04.02"]
[Round "5.1"]
[White "Hamid, Rani"]
[Black "Sultana, Sharmin Shirin"]
[Result "1/2-1/2"]
[ECO "B43"]
[WhiteElo "1920"]
[BlackElo "2006"]
[Annotator "ChessBase"]
[PlyCount "142"]
[EventDate "2021.04.02"]
[EventType "swiss"]
[EventCountry "BAN"]
[SourceTitle "playchess.com"]
[Source "ChessBase"]
[SourceQuality "1"]
[TimeControl "1500+10"]

1. e4 {[%emt 0:00:00]} c5 {[%emt 0:00:00]} 2. Nf3 {[%emt 0:00:00]} e6 {[%emt 0:00:00]} 3. d4 {[%emt 0:00:01]} cxd4 {[%emt 0:00:00]} 4. Nxd4 {[%emt 0:00:02]} a6 {[%emt 0:00:00]} 5. Nc3 {[%emt 0:00:19]} Qc7 {[%emt 0:00:00]} 6. Be2 {[%emt 0:00:40]} b5 {[%emt 0:00:01]} 7. O-O {[%emt 0:00:29]} Bb7 {[%emt 0:00:02]} 8. a3 {[%emt 0:00:05]} Nf6 {[%emt 0:00:13]} 9. Bf3 {[%emt 0:00:38]} Nc6 {[%emt 0:00:48]} 10. Nxc6 {[%emt 0:00:23]} Bxc6 {[%emt 0:00:38]} 11. Qe2 {[%emt 0:00:12]} Bd6 {[%emt 0:00:05]} 12. h3 {[%emt 0:01:06]} O-O {[%emt 0:00:18]} 13. Re1 {[%emt 0:00:36]} Be5 {[%emt 0:00:12]} 14. Bd2 {[%emt 0:00:55]} d6 {[%emt 0:00:30]} 15. g3 {[%emt 0:00:57]} Nd7 {[%emt 0:01:44]} 16. Bg2 {[%emt 0:00:26]} Nb6 {[%emt 0:01:11]} 17. f4 {[%emt 0:00:28]} Bd4+ {[%emt 0:00:17]} 18. Kh2 {[%emt 0:00:15]} Nc4 {[%emt 0:00:50]} 19. Qd3 {[%emt 0:00:52]} Bf6 {[%emt 0:02:28]} 20. Bc1 {[%emt 0:00:39]} Rfd8 {[%emt 0:01:51]} 21. f5 {[%emt 0:01:18]} Be5 {[%emt 0:03:47]} 22. Qf3 {[%emt 0:01:05]} Rac8 {[%emt 0:00:12]} 23. Nd1 {[%emt 0:01:42]} exf5 {[%emt 0:02:03]} 24. Qxf5 {[%emt 0:00:17]} d5 {[%emt 0:00:04]} 25. Bf4 {[%emt 0:02:02]} Bxf4 {[%emt 0:01:05]} 26. gxf4 {[%emt 0:00:42]} dxe4 {[%emt 0:00:18]} 27. b3 {[%emt 0:01:21]} Nd6 {[%emt 0:00:58]} 28. Qg5 {[%emt 0:00:44]} h6 {[%emt 0:00:17]} 29. Qg4 {[%emt 0:01:13]} Bd7 {[%emt 0:00:27]} 30. Qg3 {[%emt 0:00:36]} Nf5 {[%emt 0:01:46]} 31. Qf2 {[%emt 0:00:02]} Qxc2 {[%emt 0:00:14]} 32. Bxe4 {[%emt 0:00:13]} Qxb3 {[%emt 0:00:24]} 33. Ne3 {[%emt 0:01:16]} Nxe3 {[%emt 0:00:41]} 34. Rxe3 {[%emt 0:00:01]} Rc3 {[%emt 0:00:30]} 35. Rf3 {[%emt 0:01:02]} Rxf3 {[%emt 0:00:25]} 36. Bxf3 {[%emt 0:00:14]} Qc3 {[%emt 0:00:39]} 37. Rd1 {[%emt 0:00:15]} Qxa3 {[%emt 0:02:24]} 38. Bg4 {[%emt 0:00:43]} b4 {[%emt 0:01:26]} 39. Bxd7 {[%emt 0:01:52]} b3 {[%emt 0:00:14]} 40. Qb6 {[%emt 0:01:24]} Qb2+ {[%emt 0:00:41]} 41. Kh1 {[%emt 0:00:24]} Qf6 {[%emt 0:00:28]} 42. Qxb3 {[%emt 0:00:38]} Qxf4 {[%emt 0:00:15]} 43. Qb7 {[%emt 0:01:08]} a5 {[%emt 0:00:25]} 44. Rg1 {[%emt 0:00:27]} Qd4 {[%emt 0:00:27]} 45. Bc6 {[%emt 0:00:44]} g6 {[%emt 0:00:16]} 46. Rf1 {[%emt 0:00:14]} Qc4 {[%emt 0:00:22]} 47. Bg2 {[%emt 0:00:46]} a4 {[%emt 0:00:18]} 48. Qe7 {[%emt 0:00:08]} Rf8 {[%emt 0:00:23]} 49. Re1 {[%emt 0:00:36]} Qb3 {[%emt 0:00:10]} 50. Re3 {[%emt 0:00:07]} Qb1+ {[%emt 0:00:04]} 51. Kh2 {[%emt 0:00:02]} Qb8+ {[%emt 0:00:13]} 52. Kh1 {[%emt 0:00:05]} Qb1+ {[%emt 0:00:03]} 53. Kh2 {[%emt 0:00:04]} Qb8+ {[%emt 0:00:03]} 54. Kh1 {[%emt 0:00:02]} Qf4 {[%emt 0:00:08]} 55. Rf3 {[%emt 0:00:14]} Qc1+ {[%emt 0:00:05]} 56. Rf1 {[%emt 0:00:01]} Qc4 {[%emt 0:00:08]} 57. Re1 {[%emt 0:00:04]} h5 {[%emt 0:00:11]} 58. Re4 {[%emt 0:00:11]} Qc1+ {[%emt 0:00:04]} 59. Kh2 {[%emt 0:00:04]} a3 {[%emt 0:00:11]} 60. Re1 {[%emt 0:00:10]} Qb2 {[%emt 0:00:05]} 61. Kh1 {[%emt 0:00:13]} a2 {[%emt 0:00:06]} 62. Qa7 {[%emt 0:00:03]} Qb1 {[%emt 0:00:16]} 63. Rf1 {[%emt 0:00:05]} Qb3 {[%emt 0:00:30]} 64. Qd4 {[%emt 0:00:16]} Rb8 {[%emt 0:00:19]} 65. Qf6 {[%emt 0:00:37]} Rf8 {[%emt 0:00:16]} 66. Qa1 {[%emt 0:00:16]} Rc8 {[%emt 0:00:05]} 67. Qf6 {[%emt 0:00:03]} Rc2 {[%emt 0:00:13]} 68. Qd8+ {[%emt 0:00:16]} Kg7 {[%emt 0:00:08]} 69. Qd4+ {[%emt 0:00:04]} Kg8 {[%emt 0:00:05]} 70. Qd8+ {[%emt 0:00:14]} Kg7 {[%emt 0:00:09]} 71. Qf6+ {[%emt 0:00:03]} Kg8 {[%emt 0:00:01]} 1/2-1/2

[Event "9th Bangabandhu Rapid Women 2021"]
[Site "Dhaka"]
[Date "2021.04.02"]
[Round "5.2"]
[White "Noshin, Anjum"]
[Black "Ahmed, Walijah"]
[Result "1-0"]
[ECO "B48"]
[WhiteElo "1912"]
[BlackElo "1902"]
[Annotator "ChessBase"]
[PlyCount "61"]
[EventDate "2021.04.02"]
[EventType "swiss"]
[EventCountry "BAN"]
[SourceTitle "playchess.com"]
[Source "ChessBase"]
[SourceQuality "1"]
[TimeControl "1500+10"]

1. e4 {[%emt 0:00:00]} c5 {[%emt 0:00:00]} 2. Nf3 {[%emt 0:00:00]} e6 {[%emt 0:00:00]} 3. d4 {[%emt 0:00:00]} cxd4 {[%emt 0:00:00]} 4. Nxd4 {[%emt 0:00:00]} Nc6 {[%emt 0:00:00]} 5. Nc3 {[%emt 0:00:21]} Qc7 {[%emt 0:00:00]} 6. Be3 {[%emt 0:00:27]} a6 {[%emt 0:00:00]} 7. Bd3 {[%emt 0:00:16]} Nf6 {[%emt 0:00:15]} 8. Qe2 {[%emt 0:02:37]} Bb4 {[%emt 0:01:53]} 9. Nb3 {[%emt 0:03:12]} Ne5 {[%emt 0:05:06]} 10. Bd2 {[%emt 0:03:14]} d6 {[%emt 0:03:11]} 11. O-O {[%emt 0:00:38]} O-O {[%emt 0:01:45]} 12. Nb5 {[%emt 0:01:26]} axb5 {[%emt 0:02:14]} 13. Bxb4 {[%emt 0:00:03]} Nc4 {[%emt 0:00:31]} 14. Bxc4 {[%emt 0:04:54]} bxc4 {[%emt 0:01:23]} 15. e5 {[%emt 0:00:18]} dxe5 {[%emt 0:03:43]} 16. Bxf8 {[%emt 0:00:46]} cxb3 {[%emt 0:00:44]} 17. Ba3 {[%emt 0:01:02]} bxa2 {[%emt 0:01:11]} 18. Rxa2 {[%emt 0:00:24]} b5 {[%emt 0:00:50]} 19. Bd6 {[%emt 0:00:34]} Qb7 {[%emt 0:00:52]} 20. Rxa8 {[%emt 0:01:00]} Qxa8 {[%emt 0:00:01]} 21. Qxb5 {[%emt 0:00:19]} Bb7 {[%emt 0:00:22]} 22. Re1 {[%emt 0:01:25]} h6 {[%emt 0:02:36]} 23. Bxe5 {[%emt 0:00:10]} Ng4 {[%emt 0:00:02]} 24. Bg3 {[%emt 0:00:25]} Nf6 {[%emt 0:01:08]} 25. f3 {[%emt 0:00:59]} Qc8 {[%emt 0:00:29]} 26. Qd3 {[%emt 0:00:26]} Ba6 {[%emt 0:00:17]} 27. Qc3 {[%emt 0:00:28]} Qxc3 {[%emt 0:00:28]} 28. bxc3 {[%emt 0:00:02]} Nd5 {[%emt 0:00:01]} 29. Ra1 {[%emt 0:00:14]} Bb5 {[%emt 0:00:16]} 30. Ra5 {[%emt 0:03:04]} Bc4 {[%emt 0:00:42]} 31. Rc5 {[%emt 0:01:26]} 1-0

[Event "9th Bangabandhu Rapid Women 2021"]
[Site "Dhaka"]
[Date "2021.04.02"]
[Round "5.3"]
[White "Talukder, Umme Taslima Protiva"]
[Black "Kazi Zarin, Tasnim"]
[Result "1-0"]
[ECO "D08"]
[WhiteElo "1722"]
[BlackElo "1790"]
[Annotator "NA"]
[PlyCount "59"]
[EventDate "2021.04.02"]
[EventType "swiss"]
[EventCountry "BAN"]
[SourceTitle "playchess.com"]
[Source "ChessBase"]
[SourceQuality "1"]
[TimeControl "1500+10"]

1. d4 {[%emt 0:25:10]} d5 {[%emt 0:25:10]} 2. c4 {[%emt 0:00:10]} e5 {[%emt 0:00:10]} 3. dxe5 {[%emt 0:00:10]} d4 {[%emt 0:00:10]} 4. Nf3 {[%emt 0:00:10]} Nc6 5. a3 {[%emt 0:00:10]} Bg4 {[%emt 0:00:20]} 6. Nbd2 {[%emt 0:00:10]} Nge7 {[%emt 0:00:10]} 7. g3 {[%emt 0:00:10]} Ng6 {[%emt 0:00:10]} 8. Bg2 {[%emt 0:00:10]} Rb8 {[%emt 0:00:10]} 9. O-O {[%emt 0:00:10]} Ngxe5 {[%emt 0:00:10]} 10. h3 {[%emt 0:00:10]} Be6 {[%emt 0:00:10]} 11. Nxe5 {[%emt 0:00:10]} Nxe5 {[%emt 0:00:10]} 12. Qa4+ {[%emt 0:00:10]} c6 {[%emt 0:00:10]} 13. f4 {[%emt 0:00:10]} Nd7 {[%emt 0:00:10]} 14. f5 {[%emt 0:00:10]} Nb6 {[%emt 0:00:10]} 15. Qc2 {[%emt 0:00:10]} Bc8 {[%emt 0:00:10]} 16. Ne4 {[%emt 0:00:10]} Be7 {[%emt 0:00:10]} 17. Bd2 {[%emt 0:00:10]} Nd7 {[%emt 0:00:10]} 18. Bf4 {[%emt 0:00:10]} Ra8 {[%emt 0:00:10]} 19. Nd6+ {[%emt 0:00:10]} Bxd6 {[%emt 0:00:10]} 20. Bxd6 {[%emt 0:00:10]} Nf6 21. c5 {[%emt 0:00:10]} Bd7 {[%emt 0:00:20]} 22. Rad1 {[%emt 0:00:10]} Qa5 {[%emt 0:00:10]} 23. Rxd4 {[%emt 0:00:10]} Kd8 {[%emt 0:00:10]} 24. e4 {[%emt 0:00:10]} Kc8 {[%emt 0:00:10]} 25. Rfd1 {[%emt 0:00:10]} Be8 {[%emt 0:00:10]} 26. Be7 {[%emt 0:00:10]} b6 {[%emt 0:00:10]} 27. Ra4 {[%emt 0:00:10]} Qb5 {[%emt 0:00:10]} 28. Bf1 {[%emt 0:00:10]} Qxa4 {[%emt 0:00:10]} 29. Qxa4 {[%emt 0:00:10]} Kb7 {[%emt 0:00:10]} 30. Qa6+ {[%emt 0:00:10]} 1-0

[Event "9th Bangabandhu Rapid Women 2021"]
[Site "Dhaka"]
[Date "2021.04.02"]
[Round "5.4"]
[White "Jannatul, Ferdous"]
[Black "Nusrat Jahan, Alo"]
[Result "1-0"]
[ECO "D02"]
[WhiteElo "1778"]
[BlackElo "1712"]
[Annotator "NA"]
[PlyCount "130"]
[EventDate "2021.04.02"]
[EventType "swiss"]
[EventCountry "BAN"]
[SourceTitle "playchess.com"]
[Source "ChessBase"]
[SourceQuality "1"]
[TimeControl "1500+10"]

1. d4 {[%emt 0:25:10]} d5 {[%emt 0:25:10]} 2. Bf4 {[%emt 0:00:10]} e6 {[%emt 0:00:10]} 3. e3 {[%emt 0:00:10]} Nf6 {[%emt 0:00:10]} 4. Nf3 {[%emt 0:00:10]} Bd6 {[%emt 0:00:10]} 5. Bg3 {[%emt 0:00:10]} O-O {[%emt 0:00:10]} 6. c3 {[%emt 0:00:10]} b6 {[%emt 0:00:10]} 7. Bd3 {[%emt 0:00:10]} Bb7 {[%emt 0:00:10]} 8. Nbd2 {[%emt 0:00:10]} Re8 {[%emt 0:00:10]} 9. Qe2 {[%emt 0:00:10]} Nbd7 {[%emt 0:00:10]} 10. O-O {[%emt 0:00:10]} Bxg3 {[%emt 0:00:10]} 11. hxg3 {[%emt 0:00:10]} e5 {[%emt 0:00:10]} 12. dxe5 {[%emt 0:00:10]} Nxe5 {[%emt 0:00:10]} 13. Nxe5 {[%emt 0:00:10]} Rxe5 {[%emt 0:00:10]} 14. Nf3 {[%emt 0:00:10]} Re8 {[%emt 0:00:10]} 15. Nd4 {[%emt 0:00:10]} Ne4 {[%emt 0:00:10]} 16. Rad1 {[%emt 0:00:10]} c6 {[%emt 0:00:10]} 17. Qg4 {[%emt 0:00:10]} Qe7 {[%emt 0:00:10]} 18. Nf5 {[%emt 0:00:10]} Qf6 {[%emt 0:00:10]} 19. f3 {[%emt 0:00:10]} Nc5 {[%emt 0:00:10]} 20. Bc2 {[%emt 0:00:10]} g6 {[%emt 0:00:10]} 21. Kf2 {[%emt 0:00:10]} h5 {[%emt 0:00:10]} 22. Qd4 {[%emt 0:00:10]} Qxd4 {[%emt 0:00:10]} 23. Nxd4 {[%emt 0:00:10]} Ne6 {[%emt 0:00:10]} 24. Rh1 {[%emt 0:00:10]} Ng7 {[%emt 0:00:10]} 25. e4 {[%emt 0:00:10]} a6 {[%emt 0:00:10]} 26. exd5 {[%emt 0:00:10]} cxd5 {[%emt 0:00:10]} 27. Rhe1 {[%emt 0:00:10]} Kf8 {[%emt 0:00:10]} 28. Bb3 {[%emt 0:00:10]} Ne6 {[%emt 0:00:10]} 29. Rh1 {[%emt 0:00:10]} Ng7 {[%emt 0:00:10]} 30. Rhe1 {[%emt 0:00:10]} Ne6 {[%emt 0:00:10]} 31. Bc2 {[%emt 0:00:10]} Kg7 {[%emt 0:00:10]} 32. Ne2 {[%emt 0:00:10]} Rad8 {[%emt 0:00:10]} 33. Rd2 {[%emt 0:00:10]} Rd6 {[%emt 0:00:10]} 34. Red1 {[%emt 0:00:10]} Red8 {[%emt 0:00:10]} 35. Bb3 {[%emt 0:00:10]} Nc7 {[%emt 0:00:10]} 36. Nf4 {[%emt 0:00:10]} b5 {[%emt 0:00:10]} 37. Rd4 {[%emt 0:00:10]} Ne6 {[%emt 0:00:10]} 38. R4d2 {[%emt 0:00:10]} Nc7 {[%emt 0:00:10]} 39. Nd3 {[%emt 0:00:10]} Ne6 {[%emt 0:00:10]} 40. Nb4 {[%emt 0:00:10]} Nc7 {[%emt 0:00:10]} 41. Nd3 {[%emt 0:00:10]} Ne6 {[%emt 0:00:10]} 42. Re1 {[%emt 0:00:10]} d4 {[%emt 0:00:10]} 43. Bxe6 {[%emt 0:00:10]} dxc3 {[%emt 0:00:10]} 44. bxc3 {[%emt 0:00:10]} Rxd3 {[%emt 0:00:10]} 45. Rxd3 {[%emt 0:00:10]} Rxd3 {[%emt 0:00:10]} 46. Bb3 {[%emt 0:00:10]} Rxc3 {[%emt 0:00:10]} 47. Re7 {[%emt 0:00:10]} Bc8 {[%emt 0:00:10]} 48. Rxf7+ {[%emt 0:00:10]} Kh6 {[%emt 0:00:10]} 49. Rf6 {[%emt 0:00:10]} a5 {[%emt 0:00:10]} 50. Rb6 {[%emt 0:00:10]} a4 {[%emt 0:00:10]} 51. Bf7 {[%emt 0:00:10]} Bf5 {[%emt 0:00:10]} 52. Rxb5 {[%emt 0:00:10]} Rc2+ {[%emt 0:00:10]} 53. Kg1 {[%emt 0:00:10]} Rc1+ {[%emt 0:00:10]} 54. Kh2 {[%emt 0:00:10]} Rb1 {[%emt 0:00:10]} 55. Rxb1 {[%emt 0:00:10]} Bxb1 {[%emt 0:00:10]} 56. a3 Bc2 {[%emt 0:00:10]} 57. Kg1 {[%emt 0:00:20]} Kg5 {[%emt 0:00:10]} 58. Kf2 {[%emt 0:00:10]} Kf6 {[%emt 0:00:10]} 59. Be8 {[%emt 0:00:10]} Ke5 {[%emt 0:00:10]} 60. Ke3 {[%emt 0:00:10]} Kd5 {[%emt 0:00:10]} 61. Kd2 {[%emt 0:00:10]} Bf5 {[%emt 0:00:10]} 62. Bxa4 {[%emt 0:00:10]} Kc4 {[%emt 0:00:10]} 63. Be8 {[%emt 0:00:10]} Kc5 {[%emt 0:00:10]} 64. Ke3 {[%emt 0:00:10]} Kd5 {[%emt 0:00:10]} 65. Kf4 {[%emt 0:00:10]} Kd6 {[%emt 0:00:10]} 1-0

[Event "9th Bangabandhu Rapid Women 2021"]
[Site "Dhaka"]
[Date "2021.04.02"]
[Round "6.1"]
[White "Hamid, Rani"]
[Black "Jannatul, Ferdous"]
[Result "1/2-1/2"]
[ECO "B19"]
[WhiteElo "1920"]
[BlackElo "1778"]
[Annotator "ChessBase"]
[PlyCount "164"]
[EventDate "2021.04.02"]
[EventType "swiss"]
[EventCountry "BAN"]
[SourceTitle "playchess.com"]
[Source "ChessBase"]
[SourceQuality "1"]
[TimeControl "1500+10"]

1. e4 {[%emt 0:00:00]} c6 {[%emt 0:00:00]} 2. d4 {[%emt 0:00:00]} d5 {[%emt 0:00:00]} 3. Nc3 {[%emt 0:00:12]} dxe4 {[%emt 0:00:00]} 4. Nxe4 {[%emt 0:00:02]} Bf5 {[%emt 0:00:00]} 5. Ng3 {[%emt 0:00:03]} Bg6 {[%emt 0:00:00]} 6. Nf3 {[%emt 0:00:04]} Nd7 {[%emt 0:00:02]} 7. h4 {[%emt 0:00:04]} h6 {[%emt 0:00:01]} 8. h5 {[%emt 0:00:02]} Bh7 {[%emt 0:00:02]} 9. Bd3 {[%emt 0:00:06]} Bxd3 {[%emt 0:00:02]} 10. Qxd3 {[%emt 0:00:02]} e6 {[%emt 0:00:06]} 11. Bd2 {[%emt 0:00:03]} Ngf6 {[%emt 0:00:18]} 12. O-O-O {[%emt 0:00:07]} Qc7 {[%emt 0:00:08]} 13. Kb1 {[%emt 0:00:12]} O-O-O {[%emt 0:00:05]} 14. Ne4 {[%emt 0:00:13]} Nc5 {[%emt 0:00:14]} 15. Nxc5 {[%emt 0:00:18]} Bxc5 {[%emt 0:00:03]} 16. g3 {[%emt 0:00:40]} Bd6 {[%emt 0:00:20]} 17. c4 {[%emt 0:00:53]} c5 {[%emt 0:00:39]} 18. Bc3 {[%emt 0:01:54]} Rd7 {[%emt 0:03:19]} 19. Qe2 {[%emt 0:00:13]} Rhd8 {[%emt 0:01:59]} 20. dxc5 {[%emt 0:02:57]} Bxc5 {[%emt 0:00:35]} 21. Rxd7 {[%emt 0:00:45]} Rxd7 {[%emt 0:01:21]} 22. Ne5 {[%emt 0:00:20]} Rd8 {[%emt 0:00:43]} 23. f4 {[%emt 0:00:13]} Ne8 {[%emt 0:04:48]} 24. Rd1 {[%emt 0:02:34]} Rxd1+ {[%emt 0:01:12]} 25. Qxd1 {[%emt 0:00:01]} a6 {[%emt 0:02:36]} 26. Qd3 {[%emt 0:01:01]} f6 {[%emt 0:02:54]} 27. Nf3 {[%emt 0:02:41]} Qd7 {[%emt 0:01:45]} 28. Qe2 {[%emt 0:01:29]} Nd6 {[%emt 0:01:37]} 29. b4 {[%emt 0:00:14]} Ba7 {[%emt 0:00:27]} 30. g4 {[%emt 0:01:00]} Nf7 {[%emt 0:01:36]} 31. Kb2 {[%emt 0:00:54]} Qd6 {[%emt 0:01:44]} 32. Kb3 {[%emt 0:01:34]} Kd7 {[%emt 0:00:24]} 33. Qe4 {[%emt 0:01:39]} Qc6 {[%emt 0:00:53]} 34. Qd3+ {[%emt 0:00:58]} Qd6 {[%emt 0:00:07]} 35. Qe2 {[%emt 0:01:08]} Qxf4 {[%emt 0:00:26]} 36. Qd3+ {[%emt 0:02:00]} Ke7 {[%emt 0:00:14]} 37. b5 {[%emt 0:01:24]} Qxg4 {[%emt 0:00:14]} 38. Bb4+ {[%emt 0:00:14]} Ke8 {[%emt 0:00:09]} 39. bxa6 {[%emt 0:01:22]} bxa6 {[%emt 0:00:01]} 40. c5 {[%emt 0:00:27]} Qf5 {[%emt 0:00:18]} 41. Qxf5 {[%emt 0:00:51]} exf5 {[%emt 0:00:01]} 42. Nd4 {[%emt 0:00:02]} f4 {[%emt 0:00:24]} 43. Nc6 {[%emt 0:00:01]} Bxc5 {[%emt 0:00:08]} 44. Bxc5 {[%emt 0:00:03]} Ne5 {[%emt 0:00:12]} 45. Nd4 {[%emt 0:00:40]} Kd7 {[%emt 0:00:11]} 46. Nf5 {[%emt 0:00:13]} Kc6 {[%emt 0:00:06]} 47. Bf8 {[%emt 0:00:23]} f3 {[%emt 0:00:08]} 48. Bxg7 {[%emt 0:00:14]} f2 {[%emt 0:00:07]} 49. Ng3 {[%emt 0:00:07]} Ng4 {[%emt 0:00:04]} 50. Kc4 {[%emt 0:00:14]} f5 {[%emt 0:00:16]} 51. Kd3 {[%emt 0:00:12]} f4 {[%emt 0:00:16]} 52. Nf1 {[%emt 0:00:07]} Kd5 {[%emt 0:00:09]} 53. Bd4 {[%emt 0:00:18]} a5 {[%emt 0:00:09]} 54. Bb6 {[%emt 0:00:04]} a4 {[%emt 0:00:03]} 55. Ke2 {[%emt 0:00:04]} Ke4 {[%emt 0:00:20]} 56. Bxf2 {[%emt 0:00:05]} f3+ {[%emt 0:00:11]} 57. Ke1 {[%emt 0:00:06]} Nf6 {[%emt 0:00:01]} 58. Ng3+ {[%emt 0:00:09]} Kf4 {[%emt 0:00:04]} 59. Kd2 {[%emt 0:00:08]} Nd5 {[%emt 0:00:14]} 60. a3 {[%emt 0:00:13]} Kg4 {[%emt 0:00:15]} 61. Kd3 {[%emt 0:00:17]} Nf4+ {[%emt 0:00:16]} 62. Kd2 {[%emt 0:00:11]} Nh3 {[%emt 0:00:10]} 63. Ke3 {[%emt 0:00:10]} Nf4 {[%emt 0:00:05]} 64. Be1 {[%emt 0:00:12]} Nxh5 {[%emt 0:00:15]} 65. Nxh5 {[%emt 0:00:05]} Kxh5 {[%emt 0:00:00]} 66. Kxf3 {[%emt 0:00:33]} Kg5 {[%emt 0:00:06]} 67. Bd2+ {[%emt 0:00:03]} Kf6 {[%emt 0:00:01]} 68. Ke4 {[%emt 0:00:03]} Ke6 {[%emt 0:00:01]} 69. Kd4 {[%emt 0:00:05]} Kd6 {[%emt 0:00:01]} 70. Kc4 {[%emt 0:00:01]} Kc6 {[%emt 0:00:01]} 71. Kb4 {[%emt 0:00:03]} Kb6 {[%emt 0:00:01]} 72. Bxh6 {[%emt 0:01:00]} Ka6 {[%emt 0:01:22]} 73. Kxa4 {[%emt 0:00:00]} Kb6 {[%emt 0:00:00]} 74. Bf4 {[%emt 0:00:00]} Ka6 {[%emt 0:00:00]} 75. Kb4 {[%emt 0:00:00]} Kb6 {[%emt 0:00:00]} 76. a4 {[%emt 0:00:00]} Ka6 {[%emt 0:00:00]} 77. a5 {[%emt 0:00:00]} Ka7 {[%emt 0:00:00]} 78. Kb5 {[%emt 0:00:00]} Kb7 {[%emt 0:00:00]} 79. Be3 {[%emt 0:00:00]} Ka8 {[%emt 0:00:00]} 80. Kb6 {[%emt 0:00:00]} Kb8 {[%emt 0:00:00]} 81. a6 {[%emt 0:00:01]} Ka8 {[%emt 0:00:00]} 82. Bd4 {[%emt 0:00:07]} Kb8 {[%emt 0:00:00]} 1/2-1/2

[Event "9th Bangabandhu Rapid Women 2021"]
[Site "Dhaka"]
[Date "2021.04.02"]
[Round "6.2"]
[White "Talukder, Umme Taslima Protiva"]
[Black "Noshin, Anjum"]
[Result "0-1"]
[ECO "D47"]
[WhiteElo "1722"]
[BlackElo "1912"]
[Annotator "ChessBase"]
[PlyCount "54"]
[EventDate "2021.04.02"]
[EventType "swiss"]
[EventCountry "BAN"]
[SourceTitle "playchess.com"]
[Source "ChessBase"]
[SourceQuality "1"]
[TimeControl "1500+10"]

1. d4 {[%emt 0:00:00]} d5 {[%emt 0:00:25]} 2. c4 {[%emt 0:00:12]} c6 {[%emt 0:00:03]} 3. Nc3 {[%emt 0:00:08]} Nf6 {[%emt 0:00:03]} 4. e3 {[%emt 0:00:09]} e6 {[%emt 0:00:05]} 5. Nf3 {[%emt 0:00:05]} Nbd7 {[%emt 0:00:23]} 6. Bd3 {[%emt 0:00:13]} dxc4 {[%emt 0:00:03]} 7. Bxc4 {[%emt 0:00:03]} b5 {[%emt 0:00:02]} 8. Be2 {[%emt 0:00:33]} a6 {[%emt 0:00:08]} 9. a3 {[%emt 0:00:44]} c5 {[%emt 0:00:49]} 10. O-O {[%emt 0:00:43]} Bb7 {[%emt 0:01:01]} 11. b3 {[%emt 0:01:59]} Be7 {[%emt 0:00:23]} 12. Bb2 {[%emt 0:00:18]} O-O {[%emt 0:00:15]} 13. Rc1 {[%emt 0:00:24]} Rc8 {[%emt 0:00:16]} 14. Qd2 {[%emt 0:00:49]} Ne4 {[%emt 0:01:20]} 15. Nxe4 {[%emt 0:00:20]} Bxe4 {[%emt 0:00:02]} 16. a4 {[%emt 0:02:14]} bxa4 {[%emt 0:03:59]} 17. bxa4 {[%emt 0:01:21]} Qb6 {[%emt 0:04:08]} 18. Ba3 {[%emt 0:03:41]} Rfe8 {[%emt 0:00:52]} 19. a5 {[%emt 0:01:35]} Qb7 {[%emt 0:00:16]} 20. Rfd1 {[%emt 0:03:29]} h6 {[%emt 0:02:31]} 21. h3 {[%emt 0:01:06]} Bd5 {[%emt 0:03:13]} 22. Rb1 {[%emt 0:01:37]} Qc6 {[%emt 0:00:33]} 23. dxc5 {[%emt 0:00:31]} Nxc5 {[%emt 0:03:05]} 24. Rb6 {[%emt 0:02:16]} Qa4 {[%emt 0:00:04]} 25. Bxc5 {[%emt 0:03:27]} Bxc5 {[%emt 0:00:02]} 26. Bxa6 {[%emt 0:00:41]} Bxb6 {[%emt 0:02:40]} 27. Bxc8 {[%emt 0:00:24]} Bxa5 {[%emt 0:00:42]} 0-1

[Event "9th Bangabandhu Rapid Women 2021"]
[Site "Dhaka"]
[Date "2021.04.02"]
[Round "6.3"]
[White "Sultana, Sharmin Shirin"]
[Black "Sultana, Zakia"]
[Result "1-0"]
[ECO "D15"]
[WhiteElo "2006"]
[BlackElo "1786"]
[Annotator "ChessBase"]
[PlyCount "51"]
[EventDate "2021.04.02"]
[EventType "swiss"]
[EventCountry "BAN"]
[SourceTitle "playchess.com"]
[Source "ChessBase"]
[SourceQuality "1"]
[TimeControl "1500+10"]

1. d4 {[%emt 0:25:10]} d5 {[%emt 0:25:10]} 2. Nf3 {[%emt 0:00:10]} c6 {[%emt 0:00:10]} 3. c4 {[%emt 0:00:10]} Nf6 {[%emt 0:00:10]} 4. Nc3 {[%emt 0:00:10]} Bg4 {[%emt 0:00:10]} 5. Ne5 {[%emt 0:00:10]} e6 {[%emt 0:00:10]} 6. Nxg4 {[%emt 0:00:10]} Nxg4 {[%emt 0:00:10]} 7. e4 {[%emt 0:00:10]} Nf6 {[%emt 0:00:10]} 8. cxd5 {[%emt 0:00:10]} exd5 {[%emt 0:00:10]} 9. e5 {[%emt 0:00:10]} Ng8 {[%emt 0:00:10]} 10. Be3 {[%emt 0:00:10]} Nd7 {[%emt 0:00:10]} 11. Be2 {[%emt 0:00:10]} Ne7 {[%emt 0:00:10]} 12. Bg4 {[%emt 0:00:10]} Nb6 {[%emt 0:00:10]} 13. Bg5 {[%emt 0:00:10]} Qc7 {[%emt 0:00:10]} 14. Rc1 {[%emt 0:00:10]} a6 {[%emt 0:00:10]} 15. O-O {[%emt 0:00:10]} h6 {[%emt 0:00:10]} 16. Bh4 {[%emt 0:00:10]} Ng6 {[%emt 0:00:10]} 17. Bg3 {[%emt 0:00:10]} Qd8 {[%emt 0:00:10]} 18. e6 {[%emt 0:00:10]} fxe6 {[%emt 0:00:10]} 19. Re1 {[%emt 0:00:10]} Qg5 {[%emt 0:00:10]} 20. Rxe6+ {[%emt 0:00:10]} Ne7 {[%emt 0:00:10]} 21. h4 {[%emt 0:00:10]} Qxc1 {[%emt 0:00:10]} 22. Qxc1 {[%emt 0:00:10]} g6 {[%emt 0:00:10]} 23. Qe1 {[%emt 0:00:10]} Kf7 {[%emt 0:00:10]} 24. Qe5 {[%emt 0:00:10]} Rh7 {[%emt 0:00:10]} 25. h5 {[%emt 0:00:10]} Nc4 {[%emt 0:00:10]} 26. hxg6+ {[%emt 0:00:10]} 1-0

[Event "9th Bangabandhu Rapid Women 2021"]
[Site "Dhaka"]
[Date "2021.04.02"]
[Round "6.4"]
[White "Ahmed, Walijah"]
[Black "Parveen, Tanima"]
[Result "1/2-1/2"]
[ECO "C91"]
[WhiteElo "1902"]
[BlackElo "1984"]
[Annotator "ChessBase"]
[PlyCount "43"]
[EventDate "2021.04.02"]
[EventType "swiss"]
[EventCountry "BAN"]
[SourceTitle "playchess.com"]
[Source "ChessBase"]
[SourceQuality "1"]
[TimeControl "1500+10"]

1. e4 {[%emt 0:25:10]} e5 {[%emt 0:25:10]} 2. Nf3 {[%emt 0:00:10]} Nc6 {[%emt 0:00:10]} 3. Bb5 {[%emt 0:00:10]} a6 {[%emt 0:00:10]} 4. Ba4 {[%emt 0:00:10]} Nf6 {[%emt 0:00:10]} 5. O-O {[%emt 0:00:10]} b5 {[%emt 0:00:10]} 6. Bb3 {[%emt 0:00:10]} Be7 {[%emt 0:00:10]} 7. Re1 {[%emt 0:00:10]} d6 {[%emt 0:00:10]} 8. c3 {[%emt 0:00:10]} O-O {[%emt 0:00:10]} 9. d4 {[%emt 0:00:10]} Bg4 {[%emt 0:00:10]} 10. d5 {[%emt 0:00:10]} Nb8 {[%emt 0:00:10]} 11. Nbd2 {[%emt 0:00:10]} c6 {[%emt 0:00:10]} 12. dxc6 {[%emt 0:00:10]} Nxc6 {[%emt 0:00:10]} 13. h3 {[%emt 0:00:10]} Be6 {[%emt 0:00:10]} 14. Nf1 {[%emt 0:00:10]} h6 {[%emt 0:00:10]} 15. Ng3 {[%emt 0:00:10]} Qd7 {[%emt 0:00:10]} 16. Nh4 {[%emt 0:00:10]} d5 {[%emt 0:00:10]} 17. Nhf5 {[%emt 0:00:10]} Bc5 {[%emt 0:00:10]} 18. exd5 {[%emt 0:00:10]} Bxd5 {[%emt 0:00:10]} 19. Bxd5 {[%emt 0:00:10]} Qxd5 {[%emt 0:00:10]} 20. Qc2 {[%emt 0:00:10]} Rfd8 {[%emt 0:00:10]} 21. Be3 {[%emt 0:00:10]} Bxe3 {[%emt 0:00:10]} 22. Nxe3 {[%emt 0:00:10]} 1/2-1/2